Cogmind - Beta 12 @@@ ROGUE MODE // 2023.04.28 @ 17:17:59 Player: MoonDog Result: Self-destructed Performance ------------- Evolutions (5) 2500 Regions Visited (10) 2000 Robots Destroyed (25) 125 Value Destroyed (417) 417 Prototype IDs (2) 40 Alien Tech Used (0) 0 Bonus (1290) 1290 TOTAL SCORE: 6372 Bonus ------- High Alert Combat Kills 35 Follower Combat Kills 255 Entered DSFs 1000 Cogmind --------- Core Integrity 1000/1000 Matter 260/300 Energy 98/100 System Corruption 0% Temperature Cool (4) Movement Flying (32) Location -5/DSF Parts ------- > --- POWER (2) -------- Backup Power III Backup Power III > --- PROPULSION (4) --- Xenon Bombardment Thruster Nuclear Pulse Thruster Field Propulsion Drive Q-thruster > --- UTILITY (8) ------ Triangulator Improved Sensor Array Advanced Signal Interpreter Transmission Jammer Reaction Control System Improved Hacking Suite Improved Hacking Suite System Shield > --- WEAPON (3) ------- Enhanced Quantum Rifle Spear Spear > --- INVENTORY (5) ---- Improved Force Booster Advanced Force Booster Advanced ECM Suite Improved Phase Shifter Improved Hacking Suite Peak State ------------ > --- POWER ------------ Backup Power III Backup Power III > --- PROPULSION ------- Xenon Bombardment Thruster Nuclear Pulse Thruster Field Propulsion Drive Q-thruster > --- UTILITY ---------- Triangulator Improved Sensor Array Advanced Signal Interpreter Transmission Jammer Reaction Control System Improved Hacking Suite Improved Hacking Suite System Shield > --- WEAPON ----------- Enhanced Quantum Rifle Spear Spear > --- INVENTORY -------- Improved Force Booster Advanced Force Booster Advanced ECM Suite Improved Phase Shifter Improved Hacking Suite [Rating: 82] Favorites ----------- Power Backup Power III Engine Backup Power III Power Core Light Nuclear Core Reactor Antimatter Reactor Propulsion Flight Unit Wheel Wheel Hover Unit Airjet Flight Unit Flight Unit Utility Improved Hacking Suite Device Improved Sensor Array Processor Targeting Computer Hackware Improved Hacking Suite Protection Light Armor Plating Weapon Spear Energy Gun Medium Laser Energy Cannon Heavy Particle Cannon Ballistic Gun Light Assault Rifle Launcher Mini Grenade Launcher Special Weapon Mining Laser Piercing Weapon Spear Special Melee Weapon Improved Datajack Build | -11 -10 -9 -8 -7 -7 -6 -5 -5 -5 -5 ------- Run | Jun Mat Mat Mat Fac DSF Fac Fac Was Fac DSF Slots Evolved 10 | . . 2 2 2 . 2 2 . . . Power 1 | . . . . 1 . . . . . . Propulsion 2 | . . . 1 1 . . . . . . Utility 6 | . . 2 1 . . 2 1 . . . Weapon 1 | . . . . . . . 1 . . . Parts Attached 63 | 3 5 14 15 1 7 4 1 10 3 . Power 7 | . 1 1 3 . . . . 2 . . Engine 5 | . 1 1 2 . . . . 1 . . Core 1 | . . . 1 . . . . . . . Reactor 1 | . . . . . . . . 1 . . Propulsion 18 | 2 2 4 4 . 1 1 1 2 1 . Treads . | . . . . . . . . . . . Leg . | . . . . . . . . . . . Wheel 2 | 2 . . . . . . . . . . Hover 1 | . . . . . . 1 . . . . Flight 15 | . 2 4 4 . 1 . 1 2 1 . Utility 22 | . 1 4 5 1 3 3 . 3 2 . Device 10 | . . 1 3 1 . 1 . 2 2 . Storage . | . . . . . . . . . . . Processor 5 | . 1 1 2 . . . . 1 . . Hackware 6 | . . 1 . . 3 2 . . . . Protection 1 | . . 1 . . . . . . . . Artifact . | . . . . . . . . . . . Weapon 16 | 1 1 5 3 . 3 . . 3 . . Energy Gun 4 | 1 . 2 . . . . . 1 . . Energy Cannon 1 | . . . 1 . . . . . . . Ballistic Gun 1 | . . 1 . . . . . . . . Ballistic Cannon . | . . . . . . . . . . . Launcher 1 | . . 1 . . . . . . . . Special Weapon 1 | . . 1 . . . . . . . . Impact Weapon . | . . . . . . . . . . . Slashing Weapon . | . . . . . . . . . . . Piercing Weapon 4 | . . . . . 2 . . 2 . . Special Melee Weapon 4 | . 1 . 2 . 1 . . . . . Unidentified Prototypes 2 | . . . 2 . . . . . . . Parts Lost 17 | . 1 7 6 . 2 1 . . . . Power 3 | . . 1 1 . 1 . . . . . Propulsion 8 | . . 4 3 . 1 . . . . . Utility 3 | . . 1 1 . . 1 . . . . Weapon 3 | . 1 1 1 . . . . . . . Highest Loss Streak 4 | . 1 3 4 . 2 1 . . . . To Critical Strikes . | . . . . . . . . . . . Average Slot Usage (%) 67 | . 64 56 76 . 57 54 57 87 99 100 Engine 5 | . 9 4 3 . 7 . . 9 11 11 Wheel 1 | . 9 . . . . . . . . . Hover 1 | . . . . . . 4 5 5 . . Flight 13 | . 17 16 20 . 1 . 4 12 22 23 Device 7 | . . 1 8 . 8 11 11 11 20 23 Processor 12 | . 8 16 25 . 12 6 5 5 5 5 Hackware 11 | . . 1 9 . 13 24 23 23 19 17 Protection 1 | . . 4 . . . . . . . . Energy Gun 3 | . 14 4 1 . . . . 1 5 5 Launcher 1 | . . 5 . . . . . . . . Piercing Weapon 2 | . . . . . 6 . . 9 11 11 Special Melee Weapon 2 | . 4 . 3 . 6 6 5 3 . . Naked Turns . | . . . . . . . . . . . Heaviest Build 19 | 2 6 9 12 4 6 3 3 19 18 18 Greatest Support 27 | 3 8 8 14 4 4 8 8 20 27 27 Greatest Overweight (x) 1 | . 1 1 1 . 1 . . 1 . . Average Overweight (x) . | . . . . . . . . . . . Largest Inventory Capacity 5 | 5 5 5 5 5 5 5 5 5 5 5 Average Capacity 5 | 5 5 5 5 5 5 5 5 5 5 5 Most Carried 5 | 2 4 5 5 3 5 5 5 5 5 5 Average Carried 4 | 1 2 4 4 3 4 4 5 4 5 5 Final Capacity 5 | 5 5 5 5 5 5 5 5 5 5 5 Final Carried 5 | 2 2 5 4 3 5 5 5 5 5 5 Class Distribution -------------------- 48% | Mutant 34% | Hacker-Mutant 6% | Sprinter 6% | Hacker-Sprinter 4% | Scout Dominant Class ---------------- Mutant | -10/Materials Mutant | -9/Materials Sprinter | -8/Materials Sprinter | -7/Factory Mutant | -7/DSF Hacker-Mutant | -6/Factory Hacker-Mutant | -5/Factory Hacker-Mutant | -5/Waste Hacker-Sprinter | -5/Factory Hacker-Sprinter | -5/DSF Resources | -11 -10 -9 -8 -7 -7 -6 -5 -5 -5 -5 ----------- Run | Jun Mat Mat Mat Fac DSF Fac Fac Was Fac DSF Matter Collected 813 | 68 203 78 79 . . . . 365 20 . Remotely . | . . . . . . . . . . . Salvage Created 447 | 24 114 182 127 . . . . . . . Parts 45 | 5 10 22 8 . . . . . . . Haulers Intercepted 1 | . 1 . . . . . . . . . Recyclers Shooed . | . . . . . . . . . . . Parts Field Recycled . | . . . . . . . . . . . Retrieved Matter . | . . . . . . . . . . . Parts Self-Destructed . | . . . . . . . . . . . Prevented . | . . . . . . . . . . . Kills | -11 -10 -9 -8 -7 -7 -6 -5 -5 -5 -5 ------- Run | Jun Mat Mat Mat Fac DSF Fac Fac Was Fac DSF Combat Hostiles Destroyed 20 | . 3 13 4 . . . . . . . Guns 7 | . 3 4 . . . . . . . . Cannons 4 | . . . 4 . . . . . . . AOE 9 | . . 9 . . . . . . . . Classes Destroyed 7 | 1 3 2 1 . . . . . . . Tunneler 1 | 1 . . . . . . . . . . Hauler 1 | . 1 . . . . . . . . . Operator 2 | . 1 . 1 . . . . . . . Watcher 1 | . . 1 . . . . . . . . Swarmer 16 | . 3 10 3 . . . . . . . Grunt 3 | . . 3 . . . . . . . . Sentry 1 | . . . 1 . . . . . . . Best Kill Streak 6 | 1 3 6 3 . . . . . . . Combat Bots Only 6 | . 3 6 3 . . . . . . . Max Kills in Single Turn 2 | 1 1 2 1 . . . . . . . Gunslinging . | . . . . . . . . . . . Exploded 2 | . . 2 . . . . . . . . Melee . | . . . . . . . . . . . Uniques/NPCs Destroyed . | . . . . . . . . . . . Combat | -11 -10 -9 -8 -7 -7 -6 -5 -5 -5 -5 -------- Run | Jun Mat Mat Mat Fac DSF Fac Fac Was Fac DSF Damage Taken 1246 | . 194 578 356 . 93 25 . . . . Core 348 | . 56 191 52 . 49 . . . . . Absorbed by Shields . | . . . . . . . . . . . Regen/Repaired (Parts) 46 | . . . . . . . . 46 . . Core Remaining (%) 85 | 100 77 52 90 . 93 100 . . . . Volleys Fired 76 | 4 25 29 16 . . . . . 2 . Largest 1 | 1 1 1 1 . . . . . 1 . Hottest 75 | 50 50 45 75 . . . . . 65 . Shots Fired 76 | 4 25 29 16 . . . . . 2 . Gun 47 | 4 25 15 1 . . . . . 2 . Cannon 15 | . . . 15 . . . . . . . Launcher 14 | . . 14 . . . . . . . . Special . | . . . . . . . . . . . Kinetic . | . . . . . . . . . . . Thermal 57 | 4 25 10 16 . . . . . 2 . Explosive 14 | . . 14 . . . . . . . . Electromagnetic 5 | . . 5 . . . . . . . . Robot Hit Streak 8 | 1 3 8 5 . . . . . . . Robot Miss Streak 3 | 3 3 2 2 . . . . . 2 . Penetration Max . | . . . . . . . . . . . Secondary Targets . | . . . . . . . . . . . Shots Hit Robots 47 | 1 18 13 12 . 1 2 . . . . Core Hits 29 | 1 7 16 5 . . . . . . . Critical Kills . | . . . . . . . . . . . Critical Parts Destroyed . | . . . . . . . . . . . Critical Strikes . | . . . . . . . . . . . Melee Attacks 12 | . 6 . 3 . 1 2 . . . . Impact . | . . . . . . . . . . . Slashing . | . . . . . . . . . . . Piercing . | . . . . . . . . . . . Sneak Attacks 7 | . 4 . . . 1 2 . . . . Combat Hostiles 1 | . . . . . 1 . . . . . Follow-up Attacks . | . . . . . . . . . . . Damage Inflicted 1238 | 13 162 722 309 . . . . . 32 . Guns 361 | 13 162 145 9 . . . . . 32 . Cannons 300 | . . . 300 . . . . . . . Explosions 577 | . . 577 . . . . . . . . Melee . | . . . . . . . . . . . Ramming . | . . . . . . . . . . . Kinetic . | . . . . . . . . . . . Thermal 595 | 13 162 79 309 . . . . . 32 . Explosive 577 | . . 577 . . . . . . . . Electromagnetic 66 | . . 66 . . . . . . . . Impact . | . . . . . . . . . . . Slashing . | . . . . . . . . . . . Piercing . | . . . . . . . . . . . Highest Corruption . | . . . . . . . . . . . Average Corruption . | . . . . . . . . . . . Corruption Purged . | . . . . . . . . . . . Corruption Blocked . | . . . . . . . . . . . Overload Shots . | . . . . . . . . . . . Overflow Damage 35 | . . 25 10 . . . . . . . Projectiles 10 | . . . 10 . . . . . . . Explosions 25 | . . 25 . . . . . . . . Melee . | . . . . . . . . . . . Knockbacks . | . . . . . . . . . . . Impact . | . . . . . . . . . . . Kinetic . | . . . . . . . . . . . Secondary . | . . . . . . . . . . . Self-Inflicted Damage 127 | . . 127 . . . . . . . . Shots 6 | . . 6 . . . . . . . . Rammed . | . . . . . . . . . . . Targets Rammed . | . . . . . . . . . . . Kicked . | . . . . . . . . . . . Crushed . | . . . . . . . . . . . Highest Temperature 321 | . 74 28 321 . . . . . 36 . Average Temperature 79 | . 24 11 157 . . . . . 18 . Received Heat Transfer 288 | . 39 132 117 . . . . . . . Siege Activations . | . . . . . . . . . . . Robots Corrupted . | . . . . . . . . . . . Combat Hostiles . | . . . . . . . . . . . Parts Fried . | . . . . . . . . . . . Impact Corruptions . | . . . . . . . . . . . Robots Melted . | . . . . . . . . . . . Combat Hostiles . | . . . . . . . . . . . Parts Melted 2 | . 2 . . . . . . . . . Heat Transferred 1258 | 37 481 222 481 . . . . . 37 . Parts Sabotaged . | . . . . . . . . . . . Parts Stolen . | . . . . . . . . . . . Parts Stripped . | . . . . . . . . . . . Power Chain Reactions . | . . . . . . . . . . . Missiles Intercepted . | . . . . . . . . . . . Alert | -11 -10 -9 -8 -7 -7 -6 -5 -5 -5 -5 ------- Run | Jun Mat Mat Mat Fac DSF Fac Fac Was Fac DSF Peak Influence 666 | 5 166 666 380 154 107 39 14 45 86 306 Initial 221 | . 3 69 221 154 107 39 14 4 31 60 Average 177 | 1 87 379 296 154 105 34 14 22 74 184 Maximum Alert Level 2 | . . 2 1 . . . . . . 1 Low Security (%) 65 | 100 100 25 . 100 100 100 100 100 100 50 Level 1 18 | . . 16 100 . . . . . . 50 Level 2 16 | . . 58 . . . . . . . . Level 3 . | . . . . . . . . . . . Level 4 . | . . . . . . . . . . . Level 5 . | . . . . . . . . . . . High Security . | . . . . . . . . . . . Max Security . | . . . . . . . . . . . Squads Dispatched 4 | . 1 1 2 . . . . . . . Investigation 1 | . . . 1 . . . . . . . Extermination . | . . . . . . . . . . . Reinforcement 3 | . 1 1 1 . . . . . . . Assault . | . . . . . . . . . . . Garrison . | . . . . . . . . . . . Intercept . | . . . . . . . . . . . Searches Triggered . | . . . . . . . . . . . Construction Impeded . | . . . . . . . . . . . Haulers Reinforced . | . . . . . . . . . . . Active Scanning Responses . | . . . . . . . . . . . Cargo Convoy Interrupts . | . . . . . . . . . . . Stealth | -11 -10 -9 -8 -7 -7 -6 -5 -5 -5 -5 --------- Run | Jun Mat Mat Mat Fac DSF Fac Fac Was Fac DSF Distress Signals 3 | . 1 2 . . . . . . . . Communications Jammed . | . . . . . . . . . . . Distress Signals . | . . . . . . . . . . . Times Spotted 67 | . 12 26 18 . 1 4 . 1 1 4 Peak Tracking Total 10 | . 4 10 7 . 2 1 . 1 1 3 Tactical Retreats 7 | . 1 5 1 . . . . . . . Traps | -11 -10 -9 -8 -7 -7 -6 -5 -5 -5 -5 ------- Run | Jun Mat Mat Mat Fac DSF Fac Fac Was Fac DSF Traps Triggered 1 | . . . . . . . 1 . . . Indirectly . | . . . . . . . . . . . Trap Hack Attempts 37 | . . . 10 . 25 . 2 . . . Triggered . | . . . . . . . . . . . Disarmed 3 | . . . 2 . 1 . . . . . Reprogrammed 6 | . . 5 . . . . 1 . . . Reused . | . . . . . . . . . . . Traps Extracted . | . . . . . . . . . . . Installed . | . . . . . . . . . . . Triggered . | . . . . . . . . . . . Machines | -11 -10 -9 -8 -7 -7 -6 -5 -5 -5 -5 ---------- Run | Jun Mat Mat Mat Fac DSF Fac Fac Was Fac DSF Machines Disabled 4 | . . 4 . . . . . . . . Max in Single Turn 2 | . . 2 . . . . . . . . Machines Repaired . | . . . . . . . . . . . Machines Sabotaged . | . . . . . . . . . . . Overloaded Fab Kills . | . . . . . . . . . . . Hacking | -11 -10 -9 -8 -7 -7 -6 -5 -5 -5 -5 --------- Run | Jun Mat Mat Mat Fac DSF Fac Fac Was Fac DSF Machines Accessed 23 | . 3 11 5 1 . 2 . . 1 . Terminals 16 | . 3 8 3 1 . . . . 1 . Fabricators 1 | . . . . . . 1 . . . . Repair Stations 2 | . . 1 1 . . . . . . . Recycling Units 2 | . . . 1 . . 1 . . . . Scanalyzers 2 | . . 2 . . . . . . . . Garrison Access . | . . . . . . . . . . . Total Hacks 71 | . 9 39 14 2 . 6 . . 1 . Successful 48 | . 4 26 11 1 . 5 . . 1 . Failed 23 | . 5 13 3 1 . 1 . . . . Catastrophic . | . . . . . . . . . . . Database Lockouts . | . . . . . . . . . . . Manual 45 | . 9 25 11 . . . . . . . Terminals 54 | . 9 31 11 2 . . . . 1 . Fabricators 1 | . . . . . . 1 . . . . Repair Stations 3 | . . 2 1 . . . . . . . Recycling Units 7 | . . . 2 . . 5 . . . . Scanalyzers 6 | . . 6 . . . . . . . . Garrison Access . | . . . . . . . . . . . Terminal Hacks 10 | . . 8 . 1 . . . . 1 . Open DSF 2 | . . . . 1 . . . . 1 . Terminal Index 1 | . . 1 . . . . . . . . Scanalyzer Index 1 | . . 1 . . . . . . . . Alert Level 1 | . . 1 . . . . . . . . Unreport Threat 1 | . . 1 . . . . . . . . Locate Traps 1 | . . 1 . . . . . . . . Reprogram Traps 1 | . . 1 . . . . . . . . Surveillance Status 1 | . . 1 . . . . . . . . Zone Layout 1 | . . 1 . . . . . . . . Fabricator Hacks 1 | . . . . . . 1 . . . . Load Schematic 1 | . . . . . . 1 . . . . Repair Station Hacks 2 | . . 1 1 . . . . . . . Refit 2 | . . 1 1 . . . . . . . Recycling Unit Hacks 6 | . . . 2 . . 4 . . . . Process 1 | . . . . . . 1 . . . . Report Inventory 2 | . . . 1 . . 1 . . . . Retrieve Matter 2 | . . . . . . 2 . . . . Retrieve Components 1 | . . . 1 . . . . . . . Scanalyzer 5 | . . 5 . . . . . . . . Insert Component 2 | . . 2 . . . . . . . . Analyze 3 | . . 3 . . . . . . . . Garrison Access Hacks . | . . . . . . . . . . . Unauthorized Hacks 24 | . 4 12 8 . . . . . . . Terminals 24 | . 4 12 8 . . . . . . . Track 4 | . . 2 2 . . . . . . . Assimilate 6 | . 1 2 3 . . . . . . . Botnet 12 | . 2 7 3 . . . . . . . Operators 2 | . 1 1 . . . . . . . . Fabricators . | . . . . . . . . . . . Repair Stations . | . . . . . . . . . . . Recycling Units . | . . . . . . . . . . . Scanalyzers . | . . . . . . . . . . . Garrison Access . | . . . . . . . . . . . Data Cores Recovered . | . . . . . . . . . . . Used . | . . . . . . . . . . . Hacking Detections 19 | . 3 11 2 1 . 2 . . . . Full Trace Events 3 | . 1 1 1 . . . . . . . Feedback Events . | . . . . . . . . . . . Feedback Blocked . | . . . . . . . . . . . Robot Schematics Acquired . | . . . . . . . . . . . Robots Built . | . . . . . . . . . . . Authchips . | . . . . . . . . . . . Time . | . . . . . . . . . . . Total Robot Build Rating . | . . . . . . . . . . . Part Schematics Acquired 1 | . . 1 . . . . . . . . Parts Built . | . . . . . . . . . . . Authchips . | . . . . . . . . . . . Time . | . . . . . . . . . . . Total Part Build Rating . | . . . . . . . . . . . Parts Repaired . | . . . . . . . . . . . Time . | . . . . . . . . . . . Parts Recycled . | . . . . . . . . . . . Recycled Matter 32 | . . . . . . 32 . . . . Retrieved Matter 32 | . . . . . . 32 . . . . Retrieved Components 2 | . . . 2 . . . . . . . Parts Scanalyzed 1 | . . 1 . . . . . . . . Part Schematics Acquired 1 | . . 1 . . . . . . . . Parts Damaged . | . . . . . . . . . . . Bothacking | -11 -10 -9 -8 -7 -7 -6 -5 -5 -5 -5 ------------ Run | Jun Mat Mat Mat Fac DSF Fac Fac Was Fac DSF Used RIF Installer . | . . . . . . . . . . . Robots Hacked 6 | . 4 . 1 . . 1 . . . . Non-combat 6 | . 4 . 1 . . 1 . . . . Combat . | . . . . . . . . . . . Robot Hacks Applied 7 | . 4 . 1 . . 2 . . . . parse_system 2 | . 1 . . . . 1 . . . . no_distress 2 | . 1 . . . . 1 . . . . find_recycling 1 | . 1 . . . . . . . . . check_alert 2 | . 1 . 1 . . . . . . . Relay Couplers Released . | . . . . . . . . . . . Fabnet Peak Effective % . | . . . . . . . . . . . Robots Rewired . | . . . . . . . . . . . Allies Hacked . | . . . . . . . . . . . Hacks Repelled . | . . . . . . . . . . . Allies | -11 -10 -9 -8 -7 -7 -6 -5 -5 -5 -5 -------- Run | Jun Mat Mat Mat Fac DSF Fac Fac Was Fac DSF Total Allies 24 | . 1 2 1 . . . . 20 . . Largest Group 20 | . . 1 2 1 1 . . 20 19 18 Highest-Rated Group 761 | . . 10 17 9 9 . . 761 736 707 Highest-Rated Ally 50 | . . 10 10 9 9 . . 50 50 50 Total Orders 2 | . . 2 . . . . . . . . STAY 1 | . . 1 . . . . . . . . FOLLOW 1 | . . 1 . . . . . . . . Ally Attacks 45 | . . . . . . . . 12 8 25 Total Damage 1654 | . . . . . . . . 312 169 1173 Kills 10 | . . . . . . . . 2 2 6 Allies Corrupted . | . . . . . . . . . . . Allies Melted . | . . . . . . . . . . . Intel | -11 -10 -9 -8 -7 -7 -6 -5 -5 -5 -5 ------- Run | Jun Mat Mat Mat Fac DSF Fac Fac Was Fac DSF Robot Analysis Total . | . . . . . . . . . . . Derelict Logs Recovered . | . . . . . . . . . . . Drone Launches . | . . . . . . . . . . . Drone Recoveries . | . . . . . . . . . . . Exploration | -11 -10 -9 -8 -7 -7 -6 -5 -5 -5 -5 ------------- Run | Jun Mat Mat Mat Fac DSF Fac Fac Was Fac DSF Turns Passed 1317 | 32 155 367 178 5 80 137 76 193 84 10 Spaces Moved 2046 | 35 198 555 294 9 54 256 170 345 100 30 Core 460 | 35 40 75 14 . 26 247 23 . . . Treads . | . . . . . . . . . . . Legs . | . . . . . . . . . . . Wheels . | . . . . . . . . . . . Hover 12 | . . . . . . 9 3 . . . Flight 1574 | . 158 480 280 9 28 . 144 345 100 30 Fastest Speed 29 | 50 37 37 29 40 40 50 40 34 32 32 Average Speed 40 | 50 40 40 32 40 68 50 41 37 32 32 Slowest Speed 120 | 50 120 117 107 40 120 60 60 117 34 32 Overloaded Moves . | . . . . . . . . . . . Propulsion Burnouts . | . . . . . . . . . . . Robots Hopped 14 | . 3 4 7 . . . . . . . Cave-ins Triggered . | . . . . . . . . . . . Exploration Rate (%) 28 | 2 35 57 37 1 38 10 5 96 5 29 Regions Visited 10 Branch Regions . Pre-discovered Areas . | . . . . . . . . . . . Known Exits Taken 4 | . . . 1 1 . 1 . . 1 . Unknown Exits Taken 3 | 1 1 1 . . . . . . . . Scrap Searched . | . . . . . . . . . . . Spaces Dug . | . . . . . . . . . . . Terrain Destroyed 100 | . . 96 3 . . . . . 1 . Melee . | . . . . . . . . . . . Projectile 4 | . . . 3 . . . . . 1 . AOE 96 | . . 96 . . . . . . . . Terrain Rammed . | . . . . . . . . . . . Walls Destroyed . | . . . . . . . . . . . Machines Disabled . | . . . . . . . . . . . Actions | -11 -10 -9 -8 -7 -7 -6 -5 -5 -5 -5 --------- Run | Jun Mat Mat Mat Fac DSF Fac Fac Was Fac DSF Total 2427 | 43 240 666 351 9 96 262 175 407 148 30 Wait 152 | . 5 49 11 . 2 . . 43 42 . Move 2010 | 34 191 546 280 8 53 255 170 344 99 30 Hop 13 | . 3 4 6 . . . . . . . Pick Up 19 | 2 1 8 2 . 1 1 1 3 . . Fast Attach 41 | 3 4 6 9 . 5 3 1 7 3 . Attach 16 | . 1 5 5 1 . 1 . 3 . . Detach 20 | . 2 6 5 . 4 . . 2 1 . Swap 6 | . . 3 1 . 2 . . . . . Drop 25 | . 2 10 3 . 3 . 1 5 1 . Fire 76 | 4 25 29 16 . . . . . 2 . Melee 12 | . 6 . 3 . 1 2 . . . . Ram . | . . . . . . . . . . . Kick . | . . . . . . . . . . . Crush . | . . . . . . . . . . . Escape Stasis . | . . . . . . . . . . . Rewire . | . . . . . . . . . . . Trap 37 | . . . 10 . 25 . 2 . . . Miscellaneous . | . . . . . . . . . . . Route ------- -11/Junkyard -10/Materials -9/Materials (discovered 2 exits: *Mat / [*Min]) -8/Materials -7/Factory -7/DSF -6/Factory -5/Factory -5/Waste -5/Factory -5/DSF History --------- Turn | Location | Event 8 | -11/Junkyard | Discovered new exit (range 16) 33 | -11/Junkyard | Entered Materials 179 | -10/Materials | Discovered new exit (range 14) 188 | -10/Materials | Entered another Materials area 188 | -9/Materials | Accompanied by 1 ally 188 | -9/Materials | Evolved 2 slots: Utility x2 285 | -9/Materials | Discovered new exit (range 15) 303 | -9/Materials | Build established: Mutant 345 | -9/Materials | Discovered new exit (range 8) 476 | -9/Materials | Lost 3 parts (3n) 555 | -9/Materials | Entered another Materials area 555 | -8/Materials | Accompanied by 1 ally 555 | -8/Materials | Evolved 2 slots: Propulsion x1, Utility x1 721 | -8/Materials | Discovered new exit (range 18) 728 | -8/Materials | Identified exit to Factory 733 | -8/Materials | Entered Factory 733 | -7/Factory | Accompanied by 1 ally 733 | -7/Factory | Evolved 2 slots: Power x1, Propulsion x1 737 | -7/Factory | Identified exit to DSF 738 | -7/Factory | Entered DSF 738 | -7/DSF | Accompanied by 1 ally 763 | -7/DSF | Lost 4 parts (2n1u1w) 811 | -7/DSF | Discovered new exit (range 15) 818 | -7/DSF | Identified exit to Factory 818 | -7/DSF | Entered Factory 818 | -6/Factory | Evolved 2 slots: Utility x2 899 | -6/Factory | Spotted B-75 Beast 953 | -6/Factory | Discovered new exit (range 4) 955 | -6/Factory | Identified exit to Factory 955 | -6/Factory | Entered another Factory area 955 | -5/Factory | Evolved 2 slots: Utility x1, Weapon x1 1031 | -5/Factory | Sucked down chute 1031 | -5/Factory | Entered Waste 1032 | -5/Waste | Joined by Warlord forces that had cleared the area 1075 | -5/Waste | Found Broken Adv. Force Booster 1097 | -5/Waste | Build established: Hacker-Mutant 1129 | -5/Waste | Discovered new exit (range 15) 1130 | -5/Waste | A Compactor rumbled back to life 1134 | -5/Waste | Spotted C-40 Crusher 1187 | -5/Waste | Identified exit to Factory 1224 | -5/Waste | Entered Factory 1224 | -5/Factory | Accompanied by 19 allies 1266 | -5/Factory | Identified exit to DSF 1308 | -5/Factory | Entered DSF 1308 | -5/DSF | Encountered a pitched battle between 0b10 and Warlord forces 1308 | -5/DSF | Accompanied by 18 allies 1318 | -5/DSF | Self-destructed Last Messages --------------- 01247_ K-01 Serf collects debris. 01251_ U-05 Engineer lays Concrete. 01253_ U-05 Engineer builds a Wall. 01256_ Discarded Hacking Suite. 01257_ Acquired Transmission Jammer. 01266_ Connecting with DSF Access... >>Open(DSF) DSF access unlocked. 01266_ EXIT=UNLOCKED: DSF 01305_ ALERT: Concentration of foreign units detected, dispatching Demolisher response squad. LOCATION=DSF AMBIENT_HEAT=-10 GOAL=ESCAPE 01309_ L-41 Fighter suffers critical hit (Burn). 01315_ The unstable cave ceiling collapses. 01315_ Slug penetrates L3-HOH(g). 01315_ G-50 Soldier destroyed. 01315_ Slug penetrates Wall. 01318_ XO-T73(l) triggered Alarm Trap. 01318_ An alarm sounds. Map ----- +----------------------------------------------------+ | | | | | | | | | | | | | | | | | | | | | | | | | | | | | | | ????????????????????????????????????? | | ????????????????????????????????????? | | ????????????????????????????????????? | | ????????????????????????##??????????? | | ????????????????????????#""?????????? | | ????????????????????????#"#?????????? | | ???????????????????##??##"####??????? | | ???????????????##??#"#?#"""""#??????? | | ???????#!!=== !# # |##"" ""#??????? | | ??????? ""##"????? | | ??????? g l m @ """""????? | | ?????????# ### #[[## ""###????? | | ???????????????# ??#[[?#;m ###??????? | | ???????????????????###### ##???????? | | ?????????????????????#"[[ #???????? | | ?????????????????????##[[ #???????? | | ??????????????????????### ##???????? | | ??????????????????????#/l g #???????? | | ?????????????????????## /lgl#???????? | | ?????????????????????#"/gg #???????? | | ???????????????????###### g###??????? | | ???????????????#=== ss #??????? | | ???????????????#=== d s ##????? | | ???????????? [ gd #????? | | ???????????? % dl #????? | | ????????????? % #????? | | ????????????? ## !! #????? | | ???????????????# !! # ????? | | ???????????????## ## ## ##???? | | ????????????????#??# #?=%* ####????? | | ???????????????????"" ??=[ #???????? | | ?????????????????? "??? #???????? | | ?????????????????"! ??## "#???????? | | ?????????????????? "???? ]"???????? | | ???????????????????????? ]????????? | +----------------------------------------------------+ Best States ------------- Heat Dissipation 40 Energy Generation 17 Energy Capacity 280 Matter Stores 300 Matter Capacity 300 Sight Range 18 Robot Scan Range 15 Terrain Scan Density 10 Armor Coverage 150 Evasion (%) 71 Targeting Accuracy 5 Melee Accuracy 5 Offensive Hacking 36 Defensive Hacking 10 Item Schematics ----------------- Hacking Suite | -9/Materials | Scanalyzed Robot Schematics ------------------ None Fabricated ------------ Nothing Alien Tech Used ----------------- None Achievements -------------- None Challenges ------------ None Game ------ Seed AerolevShockShifter Manual? 0 Play Time 00:39:15 Cumulative 120.2 hours Start 2023.04.20 @ 00:06:10 End 2023.04.28 @ 17:17:59 Sessions 5 Manual Loads 0 Difficulty Rogue Special Mode None Game No. 100 Rogue 100 Adventurer 0 Explorer 0 Win Type - Total 1 Types 1/0/0/0/0/0/0/0/0 Lore% 38 Gallery% 53 Achievement% 46 Wizard Run 0 Options --------- ASCII 0 Keyboard 0 Movement Numpad Keybinds 0 Fullscreen 0 Font 18/SmallcapsGlow Map View 76x50 Tactical HUD 1 Map Filters NONE Filters NONE Steam 1 RUN: 9bc1b352-af40-4b9d-aac0-9c6157e8a5f5